fUSD/lending_fUSD_20250823
["ID","MTS","AMOUNT","RATE_DAILY","PERIOD"]
[380950267,1755912673531,-152.369568,0.00013972,2]
[380950268,1755912673544,-400.0,0.00013972,2]
[380950269,1755912673557,-764.74,0.00013972,2]
[380950270,1755912673569,-822.02,0.00013972,2]
[380950271,1755912673582,-2144.012255,0.00013972,2]
[380950272,1755912673594,-400.0,0.00013972,2]
[380950273,1755912673606,-400.0,0.00013972,2]
[380950274,1755912673619,-2144.012255,0.00013972,2]
[380950275,1755912673632,-400.0,0.00013972,2]
[380950276,1755912673644,-2144.012255,0.00013972,2]
[380950277,1755912673657,-400.0,0.00013972,2]
[380950278,1755912673670,-400.0,0.00013972,2]
[380950279,1755912673683,-400.0,0.00013972,2]
[380950280,1755912673695,-400.0,0.00013972,2]
[380950281,1755912673708,-493.69,0.00013972,2]
[380950282,1755912673720,-2144.012255,0.00013972,2]
[380950283,1755912673733,-400.0,0.00013972,2]
[380950284,1755912673746,-550.01,0.00013972,2]
[380950285,1755912673758,-400.0,0.00013972,2]
[380950286,1755912673771,-532.46,0.00013972,2]
[380950287,1755912673784,-400.0,0.00013972,2]
[380950288,1755912673797,-400.0,0.00013972,2]
[380950289,1755912673810,-957.7,0.00013972,2]
[380950290,1755912673823,-724.98,0.00013972,2]
[380950291,1755912673835,-3061.19,0.00013972,2]
[380950292,1755912673848,-712.18,0.00013972,2]
[380950293,1755912673860,-402.87,0.00013972,2]
[380950294,1755912673881,-484.95,0.00013972,2]
[380950295,1755912673893,-1167.85,0.00013972,2]
[380950296,1755912673905,-839.82,0.00013972,2]
[380950297,1755912673919,-400.0,0.00013972,2]
[380950298,1755912673931,-151.0,0.00013972,2]
[380950299,1755912673944,-151.0,0.00013972,2]
[380950300,1755912673956,-911.43,0.00013972,2]
[380950301,1755912673968,-151.0,0.00013972,2]
[380950302,1755912673981,-243.169796,0.00013972,2]
[380950303,1755912673993,-400.0,0.00013972,2]
[380950304,1755912674006,-400.0,0.00013972,2]
[380950305,1755912674018,-631.42,0.00013972,2]
[380950306,1755912674030,-668.01,0.00013972,2]
[380950307,1755912674042,-400.0,0.00013972,2]
[380950308,1755912674054,-243.169796,0.00013972,2]
[380950309,1755912674066,-440.73,0.00013972,2]
[380950310,1755912674078,-613.21,0.00013972,2]
[380950311,1755912674090,-400.0,0.00013972,2]
[380950312,1755912674103,-243.169796,0.00013972,2]
[380950313,1755912674116,-151.0,0.00013972,2]
[380950314,1755912674129,-400.0,0.00013972,2]
[380950315,1755912674142,-931.59,0.00013972,2]
[380950316,1755912674154,-243.169796,0.00013972,2]
[380950317,1755912674169,-151.0,0.00013972,2]
[380950318,1755912674182,-400.0,0.00013972,2]
[380950319,1755912674196,-151.0,0.00013972,2]
[380950320,1755912674208,-151.0,0.00013972,2]
[380950321,1755912674221,-298.500409,0.00013972,2]
[380950322,1755912674234,-400.0,0.00013972,2]
[380950323,1755912674246,-821.68,0.00013972,2]
[380950324,1755912674260,-585.39,0.00013972,2]
[380950325,1755912674272,-151.0,0.00013972,2]
[380950326,1755912674284,-151.0,0.00013972,2]
[380950327,1755912674296,-980.7,0.00013972,2]
[380950328,1755912674309,-298.500409,0.00013972,2]
[380950329,1755912674322,-464.46,0.00013972,2]
[380950330,1755912674335,-408.02,0.00013972,2]
[380950331,1755912674348,-400.0,0.00013972,2]
[380950332,1755912674361,-840.52,0.00013972,2]
[380950333,1755912674377,-400.0,0.00013972,2]
[380950334,1755912674390,-627.98,0.00013972,2]
[380950335,1755912674403,-468.81,0.00013972,2]
[380950336,1755912674419,-298.500409,0.00013972,2]
[380950337,1755912674431,-151.0,0.00013972,2]
[380950338,1755912674443,-400.0,0.00013972,2]
[380950339,1755912674455,-151.0,0.00013972,2]
[380950340,1755912674467,-400.0,0.00013972,2]
[380950341,1755912674479,-151.0,0.00013972,2]
[380950342,1755912674492,-298.500409,0.00013972,2]
[380950343,1755912674505,-151.0,0.00013972,2]
[380950344,1755912674517,-305.14,0.00013972,2]
[380950345,1755912674529,-420.0,0.00013972,2]
[380950346,1755912674542,-432.77,0.00013972,2]
[380950347,1755912674554,-500.0,0.00013973,2]
[380950348,1755912674567,-500.0,0.00013973,2]
[380950349,1755912674579,-200.0,0.00013973,2]
[380950350,1755912674591,-151.0,0.00013987,2]
[380950351,1755912674603,-151.0,0.00013987,2]
[380950352,1755912674616,-151.0,0.00013987,2]
[380950353,1755912674629,-151.0,0.00013987,2]
[380950354,1755912674641,-151.0,0.00013987,2]
[380950355,1755912674653,-151.0,0.00013987,2]
[380950356,1755912674666,-209.182202,0.00013987,2]
[380950357,1755912674678,-151.0,0.00013987,2]
[380950358,1755912674692,-151.0,0.00013987,2]
[380950359,1755912674704,-151.0,0.00013987,2]
[380950360,1755912674717,-220.187109,0.00013987,2]
[380950361,1755912674730,-220.187109,0.00013987,2]
[380950362,1755912674742,-220.187109,0.00013987,2]
[380950363,1755912674754,-220.187109,0.00013987,2]
[380950364,1755912674767,-3904.66,0.00014,2]
[380950365,1755912674778,-150.0,0.00014009,2]
[380950366,1755912674790,-500.0,0.00014036,2]
[380950367,1755912674804,-3378.6046419,0.00014036,2]
[380950368,1755912674816,-10356.9950503,0.00014036,2]
[380950369,1755912674827,-168.0,0.00014039,2]
[380950370,1755912674840,-200.0,0.00014039,2]
[380950371,1755912674852,-168.0,0.00014054,2]
[380950372,1755912674865,-880.77,0.000141,2]
[380950373,1755912674877,-214.0,0.0001413,2]
[380950374,1755912674889,-188.0,0.00014157,2]
[380950375,1755912674902,-286.14,0.00014158,2]
[380950376,1755912674915,-1944.44445,0.0001416,2]
[380950377,1755912674928,-188.0,0.00014172,2]
[380950378,1755912674941,-5790.5657421,0.00014174,2]
[380950379,1755912674952,-200.0,0.00014179,2]
[380950380,1755912674964,-188.0,0.00014193,2]
[380950381,1755912674977,-799.08,0.000142,2]
[380950382,1755912674989,-150.0,0.00014232,2]
[380950383,1755912675001,-883.36950304,0.00014232,2]
[380950384,1755912675012,-1125.86309211,0.00014233,2]
[380950385,1755912675024,-1368.35668118,0.00014233,2]
[380950386,1755912675037,-1610.85027025,0.00014234,2]
[380950387,1755912675049,-1853.34385932,0.00014234,2]
[380950388,1755912675061,-865.90314833,0.00014234,2]
[380950389,1755912675074,-1297.0,0.00014235,2]
[380950390,1755912675087,-599.0,0.00014235,2]
[380950391,1755912675099,-1657.0,0.00014235,2]
[380950392,1755912675112,-566.0,0.00014235,2]
[380950393,1755912675125,-2095.83744839,0.00014235,2]
[380950394,1755912675137,-2338.33103746,0.00014235,2]
[380950395,1755912675149,-2580.82462653,0.00014236,2]
[380950396,1755912675161,-2823.31821559,0.00014236,2]
[380950397,1755912675175,-166.67,0.0001424,2]
[380950398,1755912675187,-666.0,0.00014244,2]
[380950399,1755912675200,-500.0,0.00014244,2]
[380950400,1755912675213,-403.24,0.00014244,2]
[380950401,1755912675226,-150.0,0.00014245,2]
[380950402,1755912675238,-150.0,0.00014245,2]
[380950403,1755912675251,-150.0,0.00014245,2]
[380950404,1755912675263,-253.33,0.00014245,2]
[380950405,1755912675275,-203.362,0.00014245,2]
[380950406,1755912675287,-250.0,0.00014245,2]
[380950407,1755912675299,-150.0,0.00014245,2]
[380950408,1755912675311,-150.0,0.00014245,2]
[380950409,1755912675323,-150.0,0.00014245,2]
[380950410,1755912675335,-150.0,0.00014245,2]
[380950411,1755912675348,-150.0,0.00014245,2]
[380950412,1755912675359,-1173.0,0.00014245,2]
[380950413,1755912675375,-4153.0,0.00014245,2]
[380950414,1755912675387,-1255.0,0.00014245,2]
[380950415,1755912675400,-2030.0,0.00014245,2]
[380950416,1755912675412,-886.631,0.00014245,2]
[380950417,1755912675423,-6093.0,0.00014245,2]
[380950418,1755912675436,-151.0,0.00014245,2]
[380950419,1755912675448,-168.966498,0.00014245,2]
[380950420,1755912675460,-168.966498,0.00014245,2]
[380950421,1755912675472,-168.966498,0.00014245,2]
[380950422,1755912675484,-168.966498,0.00014245,2]
[380950423,1755912675496,-151.0,0.00014245,2]
[380950424,1755912675508,-151.0,0.00014245,2]
[380950425,1755912675520,-151.0,0.00014245,2]
[380950426,1755912675532,-151.0,0.00014245,2]
[380950427,1755912675544,-151.0,0.00014245,2]
[380950428,1755912675556,-151.0,0.00014245,2]
[380950429,1755912675568,-151.0,0.00014245,2]
[380950430,1755912675579,-300.916526,0.00014245,2]
[380950431,1755912675591,-151.0,0.00014245,2]
[380950432,1755912675603,-199.011048,0.00014245,2]
[380950433,1755912675615,-151.0,0.00014245,2]
[380950434,1755912675628,-151.0,0.00014245,2]
[380950435,1755912675640,-151.0,0.00014245,2]
[380950436,1755912675652,-169.41704,0.00014245,2]
[380950437,1755912675664,-151.0,0.00014245,2]
[380950438,1755912675676,-151.0,0.00014245,2]
[380950439,1755912675688,-151.0,0.00014245,2]
[380950440,1755912675702,-151.0,0.00014245,2]
[380950441,1755912675713,-151.0,0.00014245,2]
[380950442,1755912675725,-151.0,0.00014245,2]
[380950443,1755912675737,-151.0,0.00014245,2]
[380950444,1755912675750,-151.0,0.00014245,2]
[380950445,1755912675762,-151.0,0.00014245,2]
[380950446,1755912675774,-151.0,0.00014245,2]
[380950447,1755912675786,-151.0,0.00014245,2]
[380950448,1755912675797,-151.0,0.00014245,2]
[380950449,1755912675809,-151.0,0.00014245,2]
[380950450,1755912675822,-151.0,0.00014245,2]
[380950451,1755912675834,-192.358073,0.00014245,2]
[380950452,1755912675847,-151.0,0.00014245,2]
[380950453,1755912675859,-192.358073,0.00014245,2]
[380950454,1755912675871,-151.0,0.00014245,2]
[380950455,1755912675884,-192.358073,0.00014245,2]
[380950456,1755912675896,-192.358073,0.00014245,2]
[380950457,1755912675908,-151.0,0.00014245,2]
[380950458,1755912675922,-178.034059,0.00014245,2]
[380950459,1755912675934,-151.0,0.00014245,2]
[380950460,1755912675947,-151.0,0.00014245,2]
[380950461,1755912675959,-151.0,0.00014245,2]
[380950462,1755912675971,-178.034059,0.00014245,2]
[380950463,1755912675983,-178.034059,0.00014245,2]
[380950464,1755912675996,-178.034059,0.00014245,2]
[380950465,1755912676008,-151.0,0.00014245,2]
[380950466,1755912676020,-151.0,0.00014245,2]
[380950467,1755912676031,-151.0,0.00014245,2]
[380950468,1755912676040,-245.209396,0.00014245,2]
[380950469,1755912676050,-212.96139048,0.00014245,2]
[380950470,1755912676059,-404.24,0.00014246,2]
[380950471,1755912676069,-400.0,0.00014246,2]
[380950472,1755912676078,-400.0,0.00014246,2]
[380950473,1755912676088,-400.0,0.00014246,2]
[380950474,1755912676097,-957.1,0.00014246,2]
[380950475,1755912676108,-400.0,0.00014246,2]
[380950476,1755912676596,-400.0,0.00014246,2]
[380950477,1755912676616,-500.5,0.00014246,2]
[380950478,1755912676644,-400.0,0.00014246,2]
[380950479,1755912676660,-630.13,0.00014246,2]
[380950480,1755912676671,-400.0,0.00014246,2]
[380950481,1755912676680,-400.0,0.00014246,2]
[380950482,1755912676690,-484.29,0.00014246,2]
[380950483,1755912676700,-691.2,0.00014246,2]
[380950484,1755912676709,-400.0,0.00014246,2]
[380950485,1755912676719,-564.0,0.00014246,2]
[380950486,1755912676729,-922.66,0.00014246,2]
[380950487,1755912676738,-400.0,0.00014246,2]
[380950488,1755912676748,-1309.75,0.00014246,2]
[380950489,1755912676757,-400.0,0.00014246,2]
[380950490,1755912676766,-400.0,0.00014246,2]
[380950491,1755912676775,-400.0,0.00014246,2]
[380950492,1755912676785,-410.64,0.00014246,2]
[380950493,1755912676794,-400.0,0.00014246,2]
[380950494,1755912676804,-400.0,0.00014246,2]
[380950495,1755912676813,-400.0,0.00014246,2]
[380950496,1755912676822,-400.0,0.00014246,2]
[380950497,1755912676831,-400.0,0.00014246,2]
[380950498,1755912676840,-400.0,0.00014246,2]
[380950499,1755912676849,-400.0,0.00014246,2]
[380950500,1755912676859,-400.0,0.00014246,2]
[380950501,1755912676868,-400.0,0.00014246,2]
[380950502,1755912676878,-400.0,0.00014246,2]
[380950503,1755912676888,-400.0,0.00014246,2]
[380950504,1755912676897,-400.0,0.00014246,2]
[380950505,1755912676908,-400.0,0.00014246,2]
[380950506,1755912676919,-400.0,0.00014246,2]
[380950507,1755912676929,-814.35,0.00014246,2]
[380950508,1755912676938,-703.72,0.00014246,2]
[380950509,1755912676947,-400.0,0.00014246,2]
[380950510,1755912676957,-400.0,0.00014246,2]
[380950511,1755912676966,-400.0,0.00014246,2]
[380950512,1755912676976,-400.0,0.00014246,2]
[380950513,1755912676986,-400.0,0.00014246,2]
[380950514,1755912676995,-416.84,0.00014246,2]
[380950515,1755912677005,-400.0,0.00014246,2]
[380950516,1755912677014,-400.0,0.00014246,2]
[380950517,1755912677024,-552.81,0.00014246,2]
[380950518,1755912677033,-400.0,0.00014246,2]
[380950519,1755912677042,-565.22,0.00014246,2]
[380950520,1755912677052,-400.0,0.00014246,2]
[380950521,1755912677061,-400.0,0.00014246,2]
[380950522,1755912677071,-400.0,0.00014246,2]
[380950523,1755912677081,-457.37,0.00014246,2]
[380950524,1755912677090,-400.0,0.00014246,2]
[380950525,1755912677099,-400.0,0.00014246,2]
[380950526,1755912677108,-400.0,0.00014246,2]
[380950527,1755912677118,-400.0,0.00014246,2]
[380950528,1755912677127,-400.0,0.00014246,2]
[380950529,1755912677136,-400.0,0.00014246,2]
[380950530,1755912677146,-400.0,0.00014246,2]
[380950531,1755912677155,-400.0,0.00014246,2]
[380950532,1755912677167,-454.18,0.00014246,2]
[380950533,1755912677177,-400.0,0.00014246,2]
[380950534,1755912677186,-151.0,0.00014246,2]
[380950535,1755912677196,-210.75084251,0.00014246,2]
[380950536,1755912677205,-408.41,0.00014246,2]
[380950537,1755912677215,-404.28,0.00014246,2]
[380950538,1755912677224,-400.0,0.00014246,2]
[380950539,1755912677233,-400.0,0.00014246,2]
[380950540,1755912677243,-400.0,0.00014246,2]
[380950541,1755912677253,-429.23,0.00014246,2]
[380950542,1755912677262,-400.0,0.00014246,2]
[380950543,1755912677273,-400.0,0.00014246,2]
[380950544,1755912677283,-400.0,0.00014246,2]
[380950545,1755912677292,-400.0,0.00014246,2]
[380950546,1755912677302,-400.0,0.00014246,2]
[380950547,1755912677311,-582.37,0.00014246,2]
[380950548,1755912677321,-400.0,0.00014246,2]
[380950549,1755912677330,-526.2,0.00014246,2]
[380950550,1755912677340,-400.0,0.00014246,2]
[380950551,1755912677349,-400.0,0.00014246,2]
[380950552,1755912677358,-400.0,0.00014246,2]
[380950553,1755912677369,-400.0,0.00014246,2]
[380950554,1755912677379,-759.88,0.00014246,2]
[380950555,1755912677388,-591.39,0.00014246,2]
[380950556,1755912677398,-413.97,0.00014246,2]
[380950557,1755912677408,-649.74,0.00014246,2]
[380950558,1755912677418,-446.38,0.00014246,2]
[380950559,1755912677428,-506.47,0.00014246,2]
[380950560,1755912677437,-715.02,0.00014246,2]
[380950561,1755912677447,-400.0,0.00014246,2]
[380950562,1755912677456,-537.25,0.00014246,2]
[380950563,1755912677465,-400.0,0.00014246,2]
[380950564,1755912677475,-400.0,0.00014246,2]
[380950565,1755912677484,-168.966498,0.00014246,2]
[380950566,1755912677493,-512.45,0.00014246,2]
[380950567,1755912677503,-400.0,0.00014246,2]
[380950568,1755912677513,-527.41,0.00014246,2]
[380950569,1755912677522,-168.966498,0.00014246,2]
[380950570,1755912677531,-168.966498,0.00014246,2]
[380950571,1755912677542,-521.1,0.00014246,2]
[380950572,1755912677551,-168.966498,0.00014246,2]
[380950573,1755912677561,-400.0,0.00014246,2]
[380950574,1755912677571,-400.0,0.00014246,2]
[380950575,1755912677580,-400.0,0.00014246,2]
[380950576,1755912677590,-400.0,0.00014246,2]
[380950577,1755912677600,-405.25,0.00014246,2]
[380950578,1755912677609,-446.92,0.00014246,2]
[380950579,1755912677619,-449.44,0.00014246,2]
[380950580,1755912677628,-675.1,0.00014246,2]
[380950581,1755912677637,-400.0,0.00014246,2]
[380950582,1755912677646,-151.0,0.00014246,2]
[380950583,1755912677655,-400.0,0.00014246,2]
[380950584,1755912677666,-400.0,0.00014246,2]
[380950585,1755912677675,-151.0,0.00014246,2]
[380950586,1755912677685,-400.0,0.00014246,2]
[380950587,1755912677694,-400.0,0.00014246,2]
[380950588,1755912677703,-400.0,0.00014246,2]
[380950589,1755912677713,-400.0,0.00014246,2]
[380950590,1755912677722,-609.3,0.00014246,2]
[380950591,1755912677732,-400.0,0.00014246,2]
[380950592,1755912677742,-654.03,0.00014246,2]
[380950593,1755912677752,-400.0,0.00014246,2]
[380950594,1755912677763,-400.0,0.00014246,2]
[380950595,1755912677773,-400.0,0.00014246,2]
[380950596,1755912677782,-400.0,0.00014246,2]
[380950597,1755912677792,-400.0,0.00014246,2]
[380950598,1755912677801,-400.0,0.00014246,2]
[380950599,1755912677810,-661.96,0.00014246,2]
[380950600,1755912677819,-400.0,0.00014246,2]
[380950601,1755912677829,-568.98,0.00014246,2]
[380950602,1755912677838,-400.0,0.00014246,2]
[380950603,1755912677847,-400.0,0.00014246,2]
[380950604,1755912677857,-400.0,0.00014246,2]
[380950605,1755912677866,-400.0,0.00014246,2]
[380950606,1755912677875,-400.0,0.00014246,2]
[380950607,1755912677885,-400.0,0.00014246,2]
[380950608,1755912677896,-400.0,0.00014246,2]
[380950609,1755912677907,-709.86,0.00014246,2]
[380950610,1755912677918,-400.0,0.00014246,2]
[380950611,1755912677928,-437.4,0.00014246,2]
[380950612,1755912677938,-812.84,0.00014246,2]
[380950613,1755912677947,-151.0,0.00014246,2]
[380950614,1755912677957,-586.38,0.00014246,2]
[380950615,1755912677966,-442.27,0.00014246,2]
[380950616,1755912677976,-562.61,0.00014246,2]
[380950617,1755912677985,-400.0,0.00014246,2]
[380950618,1755912677994,-400.0,0.00014246,2]
[380950619,1755912678004,-400.0,0.00014246,2]
[380950620,1755912678013,-420.43731632,0.00014246,2]
[380950621,1755912678023,-400.0,0.00014246,2]
[380950622,1755912678032,-526.24780427,0.00014246,2]
[380950623,1755912678042,-400.0,0.00014246,2]
[380950624,1755912678051,-845.65,0.00014246,2]
[380950625,1755912678061,-441.24,0.00014246,2]
[380950626,1755912678070,-529.98,0.00014246,2]
[380950627,1755912678080,-400.0,0.00014246,2]
[380950628,1755912678089,-400.0,0.00014246,2]
[380950629,1755912678099,-570.39,0.00014246,2]
[380950630,1755912678108,-400.0,0.00014246,2]
[380950631,1755912678118,-400.0,0.00014246,2]
[380950632,1755912678128,-421.77,0.00014246,2]
[380950633,1755912678137,-400.0,0.00014246,2]
[380950634,1755912678147,-400.0,0.00014246,2]
[380950635,1755912678157,-400.0,0.00014246,2]
[380950636,1755912678168,-400.0,0.00014246,2]
[380950637,1755912678177,-400.0,0.00014246,2]
[380950638,1755912678187,-400.0,0.00014246,2]
[380950639,1755912678197,-400.0,0.00014246,2]
[380950640,1755912678206,-464.48,0.00014246,2]
[380950641,1755912678216,-400.0,0.00014246,2]
[380950642,1755912678225,-473.86632582,0.00014246,2]
[380950643,1755912678234,-400.0,0.00014246,2]
[380950644,1755912678243,-400.0,0.00014246,2]
[380950645,1755912678253,-171.77136146,0.00014246,2]
[380950646,1755912678263,-415.36,0.00014246,2]
[380950647,1755912678272,-400.0,0.00014246,2]
[380950648,1755912678282,-530.98,0.00014246,2]
[380950649,1755912678292,-400.0,0.00014246,2]
[380950650,1755912678301,-355.22,0.00014246,2]
[380950651,1755912678311,-400.0,0.00014246,2]
[380950652,1755912678320,-512.43,0.00014246,2]
[380950653,1755912678329,-400.0,0.00014246,2]
[380950654,1755912678339,-516.79,0.00014246,2]
[380950655,1755912678349,-400.0,0.00014246,2]
[380950656,1755912678359,-400.0,0.00014246,2]
[380950657,1755912678371,-400.0,0.00014246,2]
[380950658,1755912678381,-400.0,0.00014246,2]
[380950659,1755912678390,-400.0,0.00014246,2]
[380950660,1755912678400,-409.44,0.00014246,2]
[380950661,1755912678411,-400.0,0.00014246,2]
[380950662,1755912678422,-400.0,0.00014246,2]
[380950663,1755912678431,-400.0,0.00014246,2]
[380950664,1755912678441,-499.57,0.00014246,2]
[380950665,1755912678451,-400.0,0.00014246,2]
[380950666,1755912678461,-476.9,0.00014246,2]
[380950667,1755912678470,-577.94,0.00014246,2]
[380950668,1755912678480,-400.0,0.00014246,2]
[380950669,1755912678489,-400.0,0.00014246,2]
[380950670,1755912678499,-400.0,0.00014246,2]
[380950671,1755912678508,-400.0,0.00014246,2]
[380950672,1755912678517,-637.7,0.00014246,2]
[380950673,1755912678528,-423.83,0.00014246,2]
[380950674,1755912678538,-400.0,0.00014246,2]
[380950675,1755912678547,-873.47,0.00014246,2]
[380950676,1755912678557,-459.29,0.00014246,2]
[380950677,1755912678566,-571.62,0.00014246,2]
[380950678,1755912678575,-151.0,0.00014246,2]
[380950679,1755912678585,-151.0,0.00014246,2]
[380950680,1755912678594,-549.98,0.00014246,2]
[380950681,1755912678603,-409.95,0.00014246,2]
[380950682,1755912678613,-400.0,0.00014246,2]
[380950683,1755912678623,-1704.41,0.00014246,2]
[380950684,1755912678633,-400.0,0.00014246,2]
[380950685,1755912678643,-400.0,0.00014246,2]
[380950686,1755912678653,-400.0,0.00014246,2]
[380950687,1755912678662,-400.0,0.00014246,2]
[380950688,1755912678673,-400.0,0.00014246,2]
[380950689,1755912678682,-531.47,0.00014246,2]
[380950690,1755912678692,-400.0,0.00014246,2]
[380950691,1755912678701,-465.5058811,0.00014246,2]
[380950692,1755912678711,-456.18,0.00014246,2]
[380950693,1755912678720,-400.0,0.00014246,2]
[380950694,1755912678730,-400.0,0.00014246,2]
[380950695,1755912678739,-400.0,0.00014246,2]
[380950696,1755912678749,-400.0,0.00014246,2]
[380950697,1755912678759,-890.29,0.00014246,2]
[380950698,1755912678768,-406.1,0.00014246,2]
[380950699,1755912678777,-400.0,0.00014246,2]
[380950700,1755912678787,-400.0,0.00014246,2]
[380950701,1755912678797,-400.0,0.00014246,2]
[380950702,1755912678806,-400.0,0.00014246,2]
[380950703,1755912678816,-421.32,0.00014246,2]
[380950704,1755912678825,-400.0,0.00014246,2]
[380950705,1755912678835,-478.43,0.00014246,2]
[380950706,1755912678844,-405.52751276,0.00014246,2]
[380950707,1755912678854,-400.0,0.00014246,2]
[380950708,1755912678863,-487.04,0.00014246,2]
[380950709,1755912678873,-595.85,0.00014246,2]
[380950710,1755912678882,-400.0,0.00014246,2]
[380950711,1755912678891,-510.81,0.00014246,2]
[380950712,1755912678902,-542.43,0.00014246,2]
[380950713,1755912678911,-451.04,0.00014246,2]
[380950714,1755912678922,-400.0,0.00014246,2]
[380950715,1755912678931,-477.02,0.00014246,2]
[380950716,1755912678941,-667.8,0.00014246,2]
[380950717,1755912678950,-151.0,0.00014246,2]
[380950718,1755912678960,-234.321984,0.00014246,2]
[380950719,1755912678969,-400.0,0.00014246,2]
[380950720,1755912678979,-400.0,0.00014246,2]
[380950721,1755912678989,-400.0,0.00014246,2]
[380950722,1755912678999,-754.76,0.00014246,2]
[380950723,1755912679008,-400.0,0.00014246,2]
[380950724,1755912679017,-151.0,0.00014246,2]
[380950725,1755912679027,-510.89,0.00014246,2]
[380950726,1755912679037,-151.0,0.00014246,2]
[380950727,1755912679046,-1030.1,0.00014246,2]
[380950728,1755912679056,-151.0,0.00014246,2]
[380950729,1755912679066,-400.0,0.00014246,2]
[380950730,1755912679076,-151.0,0.00014246,2]
[380950731,1755912679085,-436.99,0.00014246,2]
[380950732,1755912679095,-657.25,0.00014246,2]
[380950733,1755912679105,-151.0,0.00014246,2]
[380950734,1755912679115,-174.220456,0.00014246,2]
[380950735,1755912679125,-400.0,0.00014246,2]
[380950736,1755912679136,-400.0,0.00014246,2]
[380950737,1755912679146,-400.0,0.00014246,2]
[380950738,1755912679155,-400.0,0.00014246,2]
[380950739,1755912679166,-417.45,0.00014246,2]
[380950740,1755912679180,-400.0,0.00014246,2]
[380950741,1755912679198,-400.0,0.00014246,2]
[380950742,1755912679208,-1067.81,0.00014246,2]
[380950743,1755912679218,-400.0,0.00014246,2]
[380950744,1755912679227,-151.0,0.00014246,2]
[380950745,1755912679237,-151.0,0.00014246,2]
[380950746,1755912679247,-400.0,0.00014246,2]
[380950747,1755912679257,-400.0,0.00014246,2]
[380950748,1755912679266,-151.0,0.00014246,2]
[380950749,1755912679276,-400.0,0.00014246,2]
[380950750,1755912679285,-207.382929,0.00014246,2]
[380950751,1755912679295,-578.42,0.00014246,2]
[380950752,1755912679305,-786.01,0.00014246,2]
[380950753,1755912679315,-400.0,0.00014246,2]
[380950754,1755912679324,-1145.67,0.00014246,2]
[380950755,1755912679334,-624.95,0.00014246,2]
[380950756,1755912679343,-400.0,0.00014246,2]
[380950757,1755912679353,-400.0,0.00014246,2]
[380950758,1755912679363,-400.0,0.00014246,2]
[380950759,1755912679376,-439.98,0.00014246,2]
[380950760,1755912679386,-400.0,0.00014246,2]
[380950761,1755912679399,-734.24,0.00014246,2]
[380950762,1755912679409,-400.0,0.00014246,2]
[380950763,1755912679426,-716.27,0.00014246,2]
[380950764,1755912679436,-400.0,0.00014246,2]
[380950765,1755912679445,-400.0,0.00014246,2]
[380950766,1755912679455,-677.21,0.00014246,2]